[Event "Turkish Women-ch Arzum 2022"]
[Site "Ayvalik"]
[Date "2022.03.06"]
[Round "2.33"]
[White "Ozturk, Busra"]
[Black "Oztatar, Meleknaz"]
[Result "0-1"]
[ECO "B01"]
[WhiteElo "1100"]
[BlackElo "1063"]
[Annotator "NA"]
[PlyCount "68"]
[EventDate "2022.03.04"]
[EventType "swiss"]
[EventCountry "TUR"]
[SourceTitle "playchess.com"]
[Source "ChessBase"]
[SourceQuality "1"]
[TimeControl "5400+30"]

1. e4 d5 2. exd5 Qxd5 {[%emt 0:00:30]} 3. Nc3 {[%emt 0:03:00]} Qa5 {[%emt 0:00:30]} 4. Nf3 {[%emt 0:01:30]} Nf6 {[%emt 0:00:30]} 5. d4 {[%emt 0:03:30]} Bf5 {[%emt 0:01:30]} 6. Bc4 {[%emt 0:03:30]} e6 {[%emt 0:00:30]} 7. a3 {[%emt 0:00:30]} c6 {[%emt 0:00:30]} 8. Bd2 {[%emt 0:00:00]} Qc7 {[%emt 0:06:30]} 9. h3 {[%emt 0:02:00]} Bd6 {[%emt 0:02:30]} 10. Qe2 {[%emt 0:01:30]} O-O {[%emt 0:09:30]} 11. O-O-O {[%emt 0:01:30]} Nbd7 {[%emt 0:01:30]} 12. g4 {[%emt 0:02:30]} Bg6 {[%emt 0:00:30]} 13. Nh4 {[%emt 0:00:30]} b5 {[%emt 0:03:30]} 14. Nxg6 {[%emt 0:03:30]} hxg6 {[%emt 0:00:30]} 15. Bd3 {[%emt 0:10:30]} b4 {[%emt 0:06:30]} 16. axb4 {[%emt 0:00:30]} Bxb4 {[%emt 0:01:30]} 17. h4 {[%emt 0:00:00]} Bxc3 {[%emt 0:00:30]} 18. Bxc3 {[%emt 0:01:00]} Qf4+ {[%emt 0:00:30]} 19. Bd2 {[%emt 0:02:30]} Qxg4 {[%emt 0:01:30]} 20. f3 {[%emt 0:02:30]} Qxd4 {[%emt 0:04:30]} 21. Bg5 {[%emt 0:02:30]} Qa4 {[%emt 0:04:30]} 22. Kb1 {[%emt 0:03:30]} Rab8 {[%emt 0:04:30]} 23. Bxg6 {[%emt 0:02:30]} fxg6 {[%emt 0:06:30]} 24. Qxe6+ {[%emt 0:00:30]} Rf7 {[%emt 0:06:30]} 25. Rd3 {[%emt 0:05:30]} Re8 {[%emt 0:02:30]} 26. Qd6 {[%emt 0:02:30]} Re2 {[%emt 0:05:30]} 27. Rb3 {[%emt 0:04:30]} Rfe7 {[%emt 0:04:30]} 28. Qd1 {[%emt 0:02:30]} Qa5 {[%emt 0:01:30]} 29. Rc3 {[%emt 0:02:30]} Qb6 {[%emt 0:04:30]} 30. h5 {[%emt 0:01:30]} gxh5 {[%emt 0:00:30]} 31. Rd3 {[%emt 0:02:30]} Qf2 {[%emt 0:01:56]} 32. Bh4 {[%emt 0:00:30]} Qg2 {[%emt 0:01:33]} 33. Rxd7 {[%emt 0:00:30]} Rxd7 {[%emt 0:01:03]} 34. Qc1 {[%emt 0:01:30]} Rxc2 {[%emt 0:00:40]} 0-1

[Event "Turkish Women-ch Arzum 2022"]
[Site "Ayvalik"]
[Date "2022.03.06"]
[Round "2.34"]
[White "Mullakutukcu, Ela"]
[Black "Kum, Busra"]
[Result "1-0"]
[ECO "A48"]
[WhiteElo "1154"]
[BlackElo "1062"]
[Annotator "NA"]
[PlyCount "109"]
[EventDate "2022.03.04"]
[EventType "swiss"]
[EventCountry "TUR"]
[SourceTitle "playchess.com"]
[Source "ChessBase"]
[SourceQuality "1"]
[TimeControl "5400+30"]

1. d4 Nf6 2. Bf4 d6 3. e3 {[%emt 0:01:00]} g6 {[%emt 0:06:00]} 4. Be2 {[%emt 0:00:30]} Bg7 {[%emt 0:00:30]} 5. h3 {[%emt 0:00:30]} Nbd7 {[%emt 0:05:30]} 6. Nf3 {[%emt 0:00:30]} c5 {[%emt 0:00:30]} 7. O-O {[%emt 0:03:30]} Qb6 {[%emt 0:02:30]} 8. Nc3 {[%emt 0:18:30]} O-O {[%emt 0:08:30]} 9. Rb1 {[%emt 0:07:30]} cxd4 {[%emt 0:05:30]} 10. exd4 {[%emt 0:00:30]} Re8 {[%emt 0:12:30]} 11. Be3 {[%emt 0:03:30]} Qd8 {[%emt 0:00:30]} 12. Bf4 {[%emt 0:10:30]} e5 {[%emt 0:03:30]} 13. dxe5 {[%emt 0:03:30]} dxe5 {[%emt 0:00:30]} 14. Nxe5 {[%emt 0:03:30]} Nxe5 {[%emt 0:05:30]} 15. Qxd8 {[%emt 0:00:30]} Rxd8 {[%emt 0:00:30]} 16. Bxe5 {[%emt 0:00:30]} Bf5 {[%emt 0:00:30]} 17. Rbc1 {[%emt 0:02:30]} Rd2 {[%emt 0:03:30]} 18. g4 {[%emt 0:03:30]} Be6 {[%emt 0:04:30]} 19. Rfd1 {[%emt 0:03:30]} Rxd1+ {[%emt 0:05:30]} 20. Rxd1 {[%emt 0:00:30]} a6 {[%emt 0:06:30]} 21. Bf3 {[%emt 0:01:30]} Re8 {[%emt 0:02:30]} 22. g5 {[%emt 0:12:30]} Nh5 {[%emt 0:16:47]} 23. Bxg7 {[%emt 0:00:30]} Kxg7 {[%emt 0:00:00]} 24. Bxh5 {[%emt 0:10:48]} gxh5 {[%emt 0:00:22]} 25. Kh2 {[%emt 0:01:55]} Bf5 {[%emt 0:02:38]} 26. Rd2 {[%emt 0:01:39]} Re1 {[%emt 0:03:15]} 27. Ne2 {[%emt 0:01:21]} h4 {[%emt 0:00:55]} 28. Nf4 {[%emt 0:02:09]} Be4 {[%emt 0:01:09]} 29. Ng2 {[%emt 0:00:26]} Rc1 {[%emt 0:01:12]} 30. Nxh4 {[%emt 0:03:14]} Bxc2 {[%emt 0:00:16]} 31. f4 {[%emt 0:01:37]} Be4 {[%emt 0:00:30]} 32. f5 {[%emt 0:00:30]} Rc2 {[%emt 0:00:30]} 33. Rxc2 {[%emt 0:00:30]} Bxc2 {[%emt 0:00:30]} 34. Kg3 {[%emt 0:00:30]} h6 {[%emt 0:01:03]} 35. Kg4 {[%emt 0:02:56]} b5 {[%emt 0:00:29]} 36. b4 {[%emt 0:00:40]} h5+ {[%emt 0:01:59]} 37. Kf4 {[%emt 0:00:22]} Bd3 {[%emt 0:01:30]} 38. Nf3 {[%emt 0:00:28]} Bf1 {[%emt 0:00:00]} 39. h4 {[%emt 0:00:56]} Kf8 {[%emt 0:00:16]} 40. Ke5 {[%emt 0:00:39]} Ke7 {[%emt 0:00:31]} 41. Nd4 {[%emt 0:00:17]} Bg2 {[%emt 0:00:55]} 42. Ne2 {[%emt 0:00:49]} Bf3 {[%emt 0:00:17]} 43. Nf4 {[%emt 0:00:00]} Bd1 {[%emt 0:00:48]} 44. Nd5+ {[%emt 0:00:08]} Kf8 {[%emt 0:00:55]} 45. Nc7 {[%emt 0:00:24]} a5 {[%emt 0:00:19]} 46. bxa5 {[%emt 0:00:07]} b4 {[%emt 0:00:36]} 47. a6 {[%emt 0:00:21]} Bf3 {[%emt 0:00:08]} 48. a7 {[%emt 0:00:12]} Ke7 {[%emt 0:00:17]} 49. Nd5+ {[%emt 0:00:25]} Bxd5 {[%emt 0:00:58]} 50. Kxd5 {[%emt 0:00:09]} b3 {[%emt 0:00:29]} 51. axb3 {[%emt 0:00:30]} f6 {[%emt 0:00:00]} 52. a8=Q {[%emt 0:00:11]} fxg5 {[%emt 0:00:21]} 53. hxg5 {[%emt 0:00:00]} h4 {[%emt 0:00:55]} 54. Qb7+ {[%emt 0:00:00]} Kf8 {[%emt 0:00:34]} 55. g6 {[%emt 0:00:13]} 1-0

[Event "Turkish Women-ch Arzum 2022"]
[Site "Ayvalik"]
[Date "2022.03.06"]
[Round "3.1"]
[White "Baloglu, Dila"]
[Black "Atalik, Ekaterina"]
[Result "1/2-1/2"]
[ECO "C47"]
[WhiteElo "1630"]
[BlackElo "2415"]
[Annotator "ChessBase"]
[PlyCount "85"]
[EventDate "2022.03.04"]
[EventType "swiss"]
[EventCountry "TUR"]
[SourceTitle "playchess.com"]
[Source "ChessBase"]
[SourceQuality "1"]
[TimeControl "5400+30"]

1. e4 {[%emt 0:01:00]} e5 {[%emt 0:01:00]} 2. Nf3 {[%emt 0:00:30]} Nc6 {[%emt 0:00:30]} 3. Nc3 {[%emt 0:00:30]} Nf6 {[%emt 0:00:30]} 4. a3 {[%emt 0:00:30]} d6 {[%emt 0:00:30]} 5. d4 {[%emt 0:00:00]} exd4 {[%emt 0:02:30]} 6. Nxd4 {[%emt 0:00:00]} Be7 {[%emt 0:00:30]} 7. Be2 {[%emt 0:01:30]} O-O {[%emt 0:01:30]} 8. Be3 {[%emt 0:00:30]} Bd7 {[%emt 0:02:30]} 9. f4 {[%emt 0:07:30]} Nxd4 {[%emt 0:01:30]} 10. Bxd4 {[%emt 0:00:00]} Bc6 {[%emt 0:01:30]} 11. Bf3 {[%emt 0:00:00]} Re8 {[%emt 0:00:30]} 12. Qd3 {[%emt 0:02:30]} Nd7 {[%emt 0:08:30]} 13. O-O-O {[%emt 0:05:30]} Bf6 {[%emt 0:00:30]} 14. Nd5 {[%emt 0:04:30]} Bxd5 {[%emt 0:04:30]} 15. exd5 {[%emt 0:00:30]} a5 {[%emt 0:05:30]} 16. g4 {[%emt 0:07:30]} Bxd4 {[%emt 0:04:30]} 17. Qxd4 {[%emt 0:00:30]} Qf6 {[%emt 0:00:30]} 18. Qxf6 {[%emt 0:02:30]} Nxf6 {[%emt 0:00:00]} 19. Rhe1 {[%emt 0:02:30]} h6 {[%emt 0:00:00]} 20. h4 {[%emt 0:06:30]} Kf8 {[%emt 0:03:30]} 21. Kd2 {[%emt 0:02:30]} Nd7 {[%emt 0:01:30]} 22. Rxe8+ {[%emt 0:03:30]} Rxe8 {[%emt 0:00:30]} 23. Re1 {[%emt 0:00:30]} Ra8 {[%emt 0:01:30]} 24. a4 {[%emt 0:04:30]} Rb8 {[%emt 0:02:30]} 25. b3 {[%emt 0:11:30]} Nc5 {[%emt 0:01:30]} 26. Kc3 {[%emt 0:04:30]} f6 {[%emt 0:04:30]} 27. h5 {[%emt 0:04:30]} Kf7 {[%emt 0:01:30]} 28. Be4 {[%emt 0:02:30]} Kf8 {[%emt 0:08:30]} 29. Bg6 {[%emt 0:03:30]} Na6 {[%emt 0:01:30]} 30. Kd4 {[%emt 0:08:15]} c6 {[%emt 0:01:30]} 31. c4 {[%emt 0:03:10]} Nc7 {[%emt 0:04:30]} 32. Re3 {[%emt 0:02:09]} Ra8 {[%emt 0:07:30]} 33. Be4 {[%emt 0:05:39]} Ra6 {[%emt 0:04:30]} 34. Kc3 {[%emt 0:00:46]} cxd5 {[%emt 0:11:45]} 35. Bxd5 {[%emt 0:00:10]} Rb6 {[%emt 0:01:03]} 36. Be4 {[%emt 0:01:19]} Rb4 {[%emt 0:00:52]} 37. Kd4 {[%emt 0:00:56]} Rb6 {[%emt 0:04:40]} 38. Bd5 {[%emt 0:01:07]} Na6 {[%emt 0:03:05]} 39. Be4 {[%emt 0:00:20]} Nc7 {[%emt 0:03:22]} 40. Bd5 {[%emt 0:00:04]} Rb4 {[%emt 0:01:19]} 41. Be4 {[%emt 0:00:27]} Rb6 {[%emt 0:02:33]} 42. Bd5 {[%emt 0:00:30]} Rb4 {[%emt 0:00:30]} 43. Be4 {[%emt 0:00:00]} 1/2-1/2

[Event "Turkish Women-ch Arzum 2022"]
[Site "Ayvalik"]
[Date "2022.03.06"]
[Round "3.2"]
[White "Yurdakul, Didem Nuray"]
[Black "Isgenderova, Hayale"]
[Result "0-1"]
[ECO "B22"]
[WhiteElo "1804"]
[BlackElo "2202"]
[Annotator "ChessBase"]
[PlyCount "62"]
[EventDate "2022.03.04"]
[EventType "swiss"]
[EventCountry "TUR"]
[SourceTitle "playchess.com"]
[Source "ChessBase"]
[SourceQuality "1"]
[TimeControl "5400+30"]

1. e4 {[%emt 0:01:00]} c5 {[%emt 0:01:00]} 2. Nf3 {[%emt 0:00:30]} e6 {[%emt 0:00:30]} 3. c3 {[%emt 0:00:30]} d5 {[%emt 0:00:30]} 4. exd5 {[%emt 0:00:30]} Qxd5 {[%emt 0:00:30]} 5. d4 {[%emt 0:00:30]} Nf6 {[%emt 0:00:30]} 6. Bd3 {[%emt 0:00:00]} Nc6 {[%emt 0:06:30]} 7. O-O {[%emt 0:00:00]} cxd4 {[%emt 0:07:30]} 8. cxd4 {[%emt 0:00:30]} Be7 {[%emt 0:00:00]} 9. Nc3 {[%emt 0:00:30]} Qa5 {[%emt 0:00:00]} 10. Be3 {[%emt 0:03:30]} O-O {[%emt 0:00:30]} 11. Rc1 {[%emt 0:05:30]} Rd8 {[%emt 0:00:30]} 12. Qe2 {[%emt 0:03:30]} Nb4 {[%emt 0:05:30]} 13. Bb1 {[%emt 0:06:30]} Qh5 {[%emt 0:05:30]} 14. h3 {[%emt 0:11:30]} b6 {[%emt 0:02:30]} 15. a3 {[%emt 0:02:30]} Ba6 {[%emt 0:01:30]} 16. Qd2 {[%emt 0:03:30]} Bxf1 {[%emt 0:00:30]} 17. Kxf1 {[%emt 0:01:30]} Nbd5 {[%emt 0:00:30]} 18. Ne4 {[%emt 0:01:30]} Nxe4 {[%emt 0:01:30]} 19. Bxe4 {[%emt 0:00:30]} Rac8 {[%emt 0:00:30]} 20. Re1 {[%emt 0:01:30]} Bf6 {[%emt 0:06:30]} 21. Bg5 {[%emt 0:03:30]} Bxg5 {[%emt 0:06:30]} 22. Nxg5 {[%emt 0:03:30]} Nf6 {[%emt 0:00:30]} 23. Bb1 {[%emt 0:07:30]} h6 {[%emt 0:00:30]} 24. Nf3 {[%emt 0:00:00]} Qd5 {[%emt 0:00:30]} 25. Kg1 {[%emt 0:04:00]} Rc7 {[%emt 0:03:30]} 26. Qf4 {[%emt 0:03:30]} Rdc8 {[%emt 0:01:30]} 27. g4 {[%emt 0:02:30]} Qb3 {[%emt 0:03:30]} 28. Be4 {[%emt 0:09:30]} Qxb2 {[%emt 0:01:30]} 29. Re3 {[%emt 0:00:30]} Nxe4 {[%emt 0:05:30]} 30. Qxe4 {[%emt 0:00:30]} Rc1+ {[%emt 0:00:00]} 31. Kg2 {[%emt 0:02:30]} R1c2 {[%emt 0:00:00]} 0-1

[Event "Turkish Women-ch Arzum 2022"]
[Site "Ayvalik"]
[Date "2022.03.06"]
[Round "3.3"]
[White "Sahin, Hayrun Nisa"]
[Black "Buyuk, Ecrin Efsa"]
[Result "0-1"]
[ECO "D12"]
[WhiteElo "2014"]
[BlackElo "1565"]
[Annotator "NA"]
[PlyCount "66"]
[EventDate "2022.03.04"]
[EventType "swiss"]
[EventCountry "TUR"]
[SourceTitle "playchess.com"]
[Source "ChessBase"]
[SourceQuality "1"]
[TimeControl "5400+30"]

1. c4 {[%emt 0:04:00]} c6 {[%emt 0:02:00]} 2. d4 {[%emt 0:03:30]} d5 {[%emt 0:00:00]} 3. Nf3 {[%emt 0:03:30]} Nf6 {[%emt 0:00:00]} 4. e3 {[%emt 0:00:30]} Bf5 {[%emt 0:01:30]} 5. Nc3 {[%emt 0:01:30]} e6 {[%emt 0:00:00]} 6. c5 {[%emt 0:09:30]} Nbd7 {[%emt 0:02:00]} 7. b4 {[%emt 0:00:30]} Be7 {[%emt 0:03:30]} 8. Be2 {[%emt 0:01:30]} O-O {[%emt 0:02:30]} 9. O-O {[%emt 0:00:00]} Qc7 {[%emt 0:02:30]} 10. Bb2 {[%emt 0:00:00]} Ne4 {[%emt 0:10:30]} 11. Nd2 {[%emt 0:05:30]} Nxd2 {[%emt 0:04:30]} 12. Qxd2 {[%emt 0:00:00]} e5 {[%emt 0:06:30]} 13. dxe5 {[%emt 0:09:00]} Nxe5 {[%emt 0:01:30]} 14. f4 {[%emt 0:00:30]} Ng6 {[%emt 0:10:00]} 15. g4 {[%emt 0:07:30]} Bc8 {[%emt 0:05:30]} 16. e4 {[%emt 0:06:30]} dxe4 {[%emt 0:04:30]} 17. Nxe4 {[%emt 0:02:30]} f6 {[%emt 0:16:30]} 18. Bc4+ {[%emt 0:08:30]} Kh8 {[%emt 0:00:30]} 19. h3 {[%emt 0:01:30]} Rd8 {[%emt 0:04:30]} 20. Qc3 {[%emt 0:03:30]} b5 {[%emt 0:02:30]} 21. Bb3 {[%emt 0:07:30]} Nxf4 {[%emt 0:01:30]} 22. Rxf4 {[%emt 0:01:30]} Qxf4 {[%emt 0:00:30]} 23. Re1 {[%emt 0:00:00]} h6 {[%emt 0:15:41]} 24. Re2 {[%emt 0:06:01]} a5 {[%emt 0:01:55]} 25. a3 $2 {[%emt 0:00:34]} (25. Qe1 $1 $15) 25... axb4 {[%emt 0:01:01]} 26. axb4 {[%emt 0:00:07]} Ra7 {[%emt 0:01:18]} 27. Ng3 {[%emt 0:00:41]} Bf8 {[%emt 0:01:35]} 28. Rf2 {[%emt 0:00:18]} Qe5 {[%emt 0:00:44]} 29. Qf3 {[%emt 0:04:13]} Qe1+ {[%emt 0:00:36]} 30. Kg2 {[%emt 0:00:05]} Re8 {[%emt 0:00:22]} 31. Bc2 {[%emt 0:04:51]} Qe3 {[%emt 0:00:33]} 32. Qd1 $19 {[%emt 0:03:41]} Rd7 {[%emt 0:00:18]} 33. Qc1 {[%emt 0:01:58]} Rd4 {[%emt 0:00:00]} 0-1

[Event "Turkish Women-ch Arzum 2022"]
[Site "Ayvalik"]
[Date "2022.03.06"]
[Round "3.4"]
[White "Yilmaz, Gokcen"]
[Black "Gokbulut, Yulia"]
[Result "1/2-1/2"]
[ECO "B22"]
[WhiteElo "1647"]
[BlackElo "1902"]
[Annotator "NA"]
[PlyCount "128"]
[EventDate "2022.03.04"]
[EventType "swiss"]
[EventCountry "TUR"]
[SourceTitle "playchess.com"]
[Source "ChessBase"]
[SourceQuality "1"]
[TimeControl "5400+30"]

1. e4 {[%emt 0:01:00]} c5 {[%emt 0:01:00]} 2. Nf3 {[%emt 0:00:30]} e6 {[%emt 0:00:30]} 3. c3 {[%emt 0:00:30]} d5 {[%emt 0:00:30]} 4. exd5 {[%emt 0:00:30]} Qxd5 {[%emt 0:00:30]} 5. d4 {[%emt 0:00:30]} Nf6 {[%emt 0:00:30]} 6. Bd3 {[%emt 0:00:30]} Be7 {[%emt 0:00:30]} 7. O-O {[%emt 0:00:00]} cxd4 {[%emt 0:01:30]} 8. cxd4 {[%emt 0:01:00]} Nc6 {[%emt 0:01:30]} 9. Nc3 {[%emt 0:00:30]} Qd8 {[%emt 0:00:30]} 10. h3 {[%emt 0:00:30]} Nb4 {[%emt 0:02:30]} 11. Bb1 {[%emt 0:03:30]} Nbd5 {[%emt 0:02:30]} 12. Bd2 {[%emt 0:01:30]} Nxc3 {[%emt 0:00:30]} 13. Bxc3 {[%emt 0:03:30]} Nd5 {[%emt 0:01:30]} 14. Qd3 {[%emt 0:02:30]} Bf6 {[%emt 0:01:30]} 15. Bc2 {[%emt 0:01:30]} Bd7 {[%emt 0:02:30]} 16. Bb3 {[%emt 0:12:30]} Bc6 {[%emt 0:01:30]} 17. Bd2 {[%emt 0:03:30]} O-O {[%emt 0:16:30]} 18. Bc2 {[%emt 0:01:30]} g6 {[%emt 0:00:30]} 19. a3 {[%emt 0:00:30]} a5 {[%emt 0:02:30]} 20. Bh6 {[%emt 0:00:30]} Bg7 {[%emt 0:02:30]} 21. Bxg7 {[%emt 0:03:30]} Kxg7 {[%emt 0:00:30]} 22. Ne5 {[%emt 0:00:00]} Be8 {[%emt 0:09:30]} 23. Qd2 {[%emt 0:02:00]} Nf6 {[%emt 0:03:30]} 24. Rfd1 {[%emt 0:01:30]} Rc8 {[%emt 0:04:30]} 25. Rac1 {[%emt 0:02:30]} Bc6 {[%emt 0:06:30]} 26. Qg5 {[%emt 0:04:30]} Qd5 {[%emt 0:05:30]} 27. f3 {[%emt 0:10:30]} Rfd8 {[%emt 0:02:30]} 28. Qe3 {[%emt 0:01:30]} Qb5 {[%emt 0:04:30]} 29. Bb3 {[%emt 0:07:30]} Bd5 {[%emt 0:01:30]} 30. Bxd5 {[%emt 0:00:00]} Qxd5 {[%emt 0:00:30]} 31. Rc3 {[%emt 0:02:00]} Qb5 {[%emt 0:08:10]} 32. Qc1 {[%emt 0:03:30]} Rxc3 {[%emt 0:01:34]} 33. Qxc3 {[%emt 0:00:30]} Nd5 {[%emt 0:00:24]} 34. Qd2 {[%emt 0:00:00]} Rc8 {[%emt 0:01:15]} 35. Ng4 {[%emt 0:01:00]} Qa4 {[%emt 0:05:13]} 36. Qh6+ {[%emt 0:05:30]} Kg8 {[%emt 0:00:34]} 37. Rd2 {[%emt 0:02:30]} Rc1+ {[%emt 0:01:28]} 38. Kh2 {[%emt 0:00:00]} Qc4 {[%emt 0:01:57]} 39. Ne3 {[%emt 0:03:00]} Qc7+ {[%emt 0:00:52]} 40. g3 {[%emt 0:00:30]} Nxe3 {[%emt 0:01:15]} 41. Qxe3 {[%emt 0:00:00]} Qc4 {[%emt 0:01:26]} 42. Qf2 $17 {[%emt 0:03:52]} (42. g4 $11 {remains equal.}) 42... Rf1 {[%emt 0:00:24]} 43. Qg2 {[%emt 0:03:02]} Qc1 {[%emt 0:00:30]} 44. Rc2 {[%emt 0:01:04]} Rh1+ {[%emt 0:00:14]} 45. Qxh1 {[%emt 0:00:00]} Qxc2+ {[%emt 0:00:30]} 46. Qg2 {[%emt 0:00:04]} Qxg2+ {[%emt 0:02:08]} 47. Kxg2 {[%emt 0:00:30]} Kf8 {[%emt 0:00:00]} 48. Kf2 {[%emt 0:00:14]} Ke7 {[%emt 0:00:29]} 49. Ke3 {[%emt 0:00:30]} Kd6 {[%emt 0:00:00]} 50. Kd3 {[%emt 0:00:00]} Kd5 {[%emt 0:00:25]} 51. a4 {[%emt 0:00:53]} g5 {[%emt 0:01:23]} 52. b3 {[%emt 0:00:10]} h5 {[%emt 0:01:23]} 53. Ke3 {[%emt 0:00:31]} f6 {[%emt 0:01:27]} 54. Kd3 {[%emt 0:02:28]} b6 {[%emt 0:00:47]} 55. Ke3 {[%emt 0:00:24]} e5 {[%emt 0:01:02]} 56. dxe5 {[%emt 0:00:36]} Kxe5 {[%emt 0:00:15]} 57. Kd3 {[%emt 0:04:09]} Kd5 {[%emt 0:00:11]} 58. f4 {[%emt 0:07:27]} gxf4 {[%emt 0:01:35]} 59. gxf4 {[%emt 0:00:30]} h4 {[%emt 0:00:00]} 60. Ke3 {[%emt 0:00:18]} f5 {[%emt 0:00:25]} 61. Kd3 {[%emt 0:00:15]} Kc5 {[%emt 0:00:30]} 62. Kc3 {[%emt 0:00:00]} Kd5 {[%emt 0:00:19]} 63. Kd3 {[%emt 0:00:00]} Kc5 {[%emt 0:00:39]} 64. Kc3 {[%emt 0:00:01]} Kd5 {[%emt 0:00:50]} 1/2-1/2

[Event "Turkish Women-ch Arzum 2022"]
[Site "Ayvalik"]
[Date "2022.03.06"]
[Round "3.5"]
[White "Catal, Uktenur"]
[Black "Aydogan, Arya"]
[Result "1-0"]
[ECO "E12"]
[WhiteElo "1832"]
[BlackElo "1328"]
[Annotator "NA"]
[PlyCount "75"]
[EventDate "2022.03.04"]
[EventType "swiss"]
[EventCountry "TUR"]
[SourceTitle "playchess.com"]
[Source "ChessBase"]
[SourceQuality "1"]
[TimeControl "5400+30"]

1. Nf3 {[%emt 0:01:00]} d5 {[%emt 0:01:00]} 2. d4 {[%emt 0:00:30]} Nf6 {[%emt 0:00:30]} 3. c4 {[%emt 0:00:30]} e6 {[%emt 0:00:30]} 4. Nc3 {[%emt 0:00:00]} a6 {[%emt 0:04:30]} 5. a4 {[%emt 0:01:00]} b6 {[%emt 0:06:30]} 6. Bg5 {[%emt 0:03:30]} Be7 {[%emt 0:02:30]} 7. e3 {[%emt 0:00:00]} Bb7 {[%emt 0:01:30]} 8. Bd3 {[%emt 0:01:00]} Nbd7 {[%emt 0:02:30]} 9. O-O {[%emt 0:00:30]} O-O {[%emt 0:01:30]} 10. Qe2 {[%emt 0:01:30]} Ne4 {[%emt 0:12:30]} 11. Bxe7 {[%emt 0:11:30]} Qxe7 {[%emt 0:00:30]} 12. Rfd1 {[%emt 0:15:30]} f5 {[%emt 0:06:30]} 13. Ne1 {[%emt 0:05:30]} Ndf6 {[%emt 0:08:30]} 14. f3 {[%emt 0:04:30]} Nd6 {[%emt 0:02:30]} 15. c5 {[%emt 0:01:30]} bxc5 {[%emt 0:02:30]} 16. dxc5 {[%emt 0:00:30]} Nf7 {[%emt 0:00:30]} 17. c6 {[%emt 0:02:30]} Bxc6 {[%emt 0:09:30]} 18. Bxa6 {[%emt 0:00:30]} Nd6 {[%emt 0:00:30]} 19. b4 {[%emt 0:06:30]} Rfb8 {[%emt 0:03:30]} 20. Nc2 {[%emt 0:04:30]} Rb6 {[%emt 0:07:30]} 21. b5 {[%emt 0:08:30]} Bd7 {[%emt 0:01:30]} 22. a5 {[%emt 0:02:30]} Rbb8 {[%emt 0:00:30]} 23. Na3 {[%emt 0:02:30]} Qe8 {[%emt 0:05:12]} 24. Rdb1 {[%emt 0:02:30]} c5 {[%emt 0:04:16]} 25. Qd2 {[%emt 0:11:07]} Qd8 {[%emt 0:02:22]} 26. Ne2 {[%emt 0:01:47]} Nfe8 {[%emt 0:01:42]} 27. Qc3 {[%emt 0:02:38]} c4 {[%emt 0:03:08]} 28. Qe5 {[%emt 0:02:21]} Nf7 {[%emt 0:01:12]} 29. Qd4 {[%emt 0:01:30]} Nc7 {[%emt 0:02:21]} 30. e4 {[%emt 0:00:07]} Nxa6 {[%emt 0:01:49]} 31. bxa6 {[%emt 0:00:05]} Bc6 {[%emt 0:00:08]} 32. exf5 {[%emt 0:01:07]} exf5 {[%emt 0:00:14]} 33. Nf4 {[%emt 0:02:54]} Rxa6 {[%emt 0:02:16]} 34. Ne6 {[%emt 0:00:22]} Rxb1+ {[%emt 0:00:58]} 35. Rxb1 {[%emt 0:00:03]} Qf6 {[%emt 0:00:54]} 36. Rb8+ {[%emt 0:00:05]} Nd8 {[%emt 0:00:00]} 37. Rxd8+ {[%emt 0:00:44]} Kf7 {[%emt 0:00:14]} 38. Rf8+ {[%emt 0:00:53]} 1-0

[Event "Turkish Women-ch Arzum 2022"]
[Site "Ayvalik"]
[Date "2022.03.06"]
[Round "3.6"]
[White "Gur, Tuba"]
[Black "Acar, Ilayda"]
[Result "0-1"]
[ECO "A65"]
[WhiteElo "1750"]
[BlackElo "1460"]
[Annotator "NA"]
[PlyCount "65"]
[EventDate "2022.03.04"]
[EventType "swiss"]
[EventCountry "TUR"]
[SourceTitle "playchess.com"]
[Source "ChessBase"]
[SourceQuality "1"]
[TimeControl "5400+30"]

1. c4 {[%emt 0:01:00]} Nf6 {[%emt 0:01:00]} 2. Nc3 {[%emt 0:00:30]} e6 {[%emt 0:00:30]} 3. d4 {[%emt 0:00:30]} c5 {[%emt 0:00:30]} 4. d5 {[%emt 0:01:30]} exd5 {[%emt 0:00:30]} 5. cxd5 {[%emt 0:00:30]} d6 {[%emt 0:00:00]} 6. e4 {[%emt 0:01:30]} a6 {[%emt 0:00:00]} 7. a4 {[%emt 0:01:30]} g6 {[%emt 0:01:30]} 8. Bg5 {[%emt 0:00:30]} Bg7 {[%emt 0:01:30]} 9. f4 {[%emt 0:04:30]} O-O {[%emt 0:03:30]} 10. Nf3 {[%emt 0:01:30]} Bg4 {[%emt 0:01:30]} 11. Be2 {[%emt 0:01:30]} Bxf3 {[%emt 0:01:30]} 12. Bxf3 {[%emt 0:00:30]} Nbd7 {[%emt 0:00:30]} 13. O-O {[%emt 0:02:30]} Re8 {[%emt 0:02:30]} 14. Re1 {[%emt 0:02:30]} Rb8 {[%emt 0:03:30]} 15. a5 {[%emt 0:09:30]} b5 {[%emt 0:03:30]} 16. axb6 {[%emt 0:02:30]} Qxb6 {[%emt 0:00:00]} 17. Ra2 {[%emt 0:00:30]} c4+ {[%emt 0:08:00]} 18. Kh1 {[%emt 0:00:30]} Nc5 {[%emt 0:01:30]} 19. Bh4 {[%emt 0:23:30]} Nd3 {[%emt 0:03:30]} 20. Re2 {[%emt 0:06:30]} Nxf4 {[%emt 0:02:30]} 21. Rd2 {[%emt 0:00:30]} Nd3 {[%emt 0:17:30]} 22. Qa4 {[%emt 0:02:30]} Nb4 {[%emt 0:01:30]} 23. Ra1 {[%emt 0:03:30]} Rec8 {[%emt 0:05:30]} 24. Bf2 {[%emt 0:04:30]} Qd8 {[%emt 0:03:30]} 25. Na2 {[%emt 0:09:48]} Nd3 {[%emt 0:06:30]} 26. Qa3 {[%emt 0:05:02]} Ne8 {[%emt 0:06:30]} 27. Nc3 {[%emt 0:01:21]} Nc7 {[%emt 0:02:30]} 28. Bg4 {[%emt 0:02:28]} Rb3 {[%emt 0:00:30]} 29. Qxb3 {[%emt 0:05:18]} Nxf2+ {[%emt 0:01:30]} 30. Rxf2 {[%emt 0:00:18]} cxb3 {[%emt 0:00:00]} 31. Bxc8 {[%emt 0:00:51]} Qxc8 {[%emt 0:00:00]} 32. Raf1 {[%emt 0:00:34]} Qe8 {[%emt 0:02:30]} 33. Na4 {[%emt 0:01:52]} 0-1